Cogmind - Beta 10.2 @@@ ROGUE MODE // 2021.08.31 @ 12:32:21 Player: Fwiffo Result: Destroyed by G-47 Trooper with Particle Gun Performance ------------- Evolutions (1) 500 Regions Visited (2) 400 Robots Destroyed (21) 105 Value Destroyed (471) 471 Prototype IDs (0) 0 Alien Tech Used (0) 0 Bonus (0) 0 TOTAL SCORE: 1476 Bonus ------- None Cogmind --------- Core Integrity 0/400 Matter 261/300 Energy 100/100 System Corruption 0% Temperature Cool (9) Movement Core (300) Ox5 Location -9/Materials Parts ------- > --- POWER (1) -------- (None) > --- PROPULSION (4) --- (None) > --- UTILITY (2) ------ Large Storage Unit > --- WEAPON (2) ------- (None) > --- INVENTORY (10) --- Medium Storage Unit Large Storage Unit Structural Scanner Sensor Array Terrain Scanner Targeting Computer Light Armor Plating Peak State ------------ > --- POWER ------------ Ion Engine > --- PROPULSION ------- Light Treads Aluminum Leg Aluminum Leg Aluminum Leg > --- UTILITY ---------- Large Storage Unit Sensor Array > --- WEAPON ----------- Light Assault Rifle Heavy Assault Rifle > --- INVENTORY -------- Medium Storage Unit Large Storage Unit Structural Scanner Sensor Array Improved Signal Interpreter Terrain Scanner Targeting Computer Light Armor Plating Grenade Launcher [Rating: 11] Favorites ----------- Power Ion Engine Engine Ion Engine Propulsion Aluminum Leg Treads Light Treads Leg Aluminum Leg Utility Large Storage Unit Device Sensor Array Storage Large Storage Unit Processor Seismic Analyzer Weapon Small Laser Energy Gun Small Laser Ballistic Gun Light Assault Rifle Launcher Rocket Launcher Build | -11 -10 -9 ------- Run | Scr Mat Mat Slots Evolved 2 | . . 2 Power . | . . . Propulsion 2 | . . 2 Utility . | . . . Weapon . | . . . Parts Attached 27 | 7 10 10 Power 5 | 1 3 1 Engine 5 | 1 3 1 Core . | . . . Reactor . | . . . Propulsion 8 | 2 2 4 Treads 1 | . . 1 Leg 7 | 2 2 3 Wheel . | . . . Hover . | . . . Flight . | . . . Utility 5 | 2 3 . Device 1 | . 1 . Storage 3 | 1 2 . Processor 1 | 1 . . Hackware . | . . . Protection . | . . . Artifact . | . . . Weapon 9 | 2 2 5 Energy Gun 4 | 2 1 1 Energy Cannon . | . . . Ballistic Gun 3 | . 1 2 Ballistic Cannon . | . . . Launcher 2 | . . 2 Special Weapon . | . . . Impact Weapon . | . . . Slashing Weapon . | . . . Piercing Weapon . | . . . Special Melee Weapon . | . . . Unidentified Prototypes . | . . . Parts Lost 16 | . 2 14 Power 3 | . 1 2 Propulsion 4 | . . 4 Utility 1 | . . 1 Weapon 8 | . 1 7 Highest Loss Streak 9 | . 2 9 Average Slot Usage (%) 94 | . 99 86 Engine 11 | . 13 7 Leg 31 | . 28 36 Device 5 | . 1 10 Storage 17 | . 21 11 Processor 3 | . 4 . Energy Gun 15 | . 23 4 Ballistic Gun 8 | . 4 14 Naked Turns . | . . . Heaviest Build 39 | 9 39 26 Greatest Support 40 | 20 20 40 Greatest Overweight (x) 5 | 1 1 5 Average Overweight (x) . | . . . Largest Inventory Capacity 16 | 6 16 10 Average Capacity 10 | 5 11 10 Most Carried 16 | 6 16 10 Average Carried 9 | 3 10 9 Final Capacity 10 | 6 10 10 Final Carried 10 | 5 10 7 Class Distribution -------------------- 63% | Mutant 36% | Scavenger-Mutant Dominant Class ---------------- Mutant | -10/Materials Scavenger-Mutant | -9/Materials Resources | -11 -10 -9 ----------- Run | Scr Mat Mat Matter Collected 533 | 270 95 168 Remotely . | . . . Salvage Created 752 | 117 361 274 Parts 42 | 4 18 20 Haulers Intercepted . | . . . Recyclers Shooed 2 | . 1 1 Parts Field Recycled . | . . . Retrieved Matter . | . . . Parts Self-Destructed . | . . . Prevented . | . . . Kills | -11 -10 -9 ------- Run | Scr Mat Mat Combat Hostiles Destroyed 13 | . 6 7 Guns 12 | . 6 6 AOE 1 | . . 1 Classes Destroyed 8 | 3 2 3 Worker 2 | 1 . 1 Tunneler 1 | 1 . . Recycler 3 | 1 2 . Operator 1 | . . 1 Watcher 1 | . . 1 Swarmer 4 | . 1 3 Grunt 6 | . 5 1 Sentry 3 | . . 3 Best Kill Streak 3 | 3 3 3 Combat Bots Only 3 | . 3 3 Max Kills in Single Turn 2 | 2 1 1 Gunslinging . | . . . Exploded 1 | . . 1 Melee . | . . . Uniques/NPCs Destroyed . | . . . Combat | -11 -10 -9 -------- Run | Scr Mat Mat Damage Taken 1785 | . 336 1449 Core 483 | . 72 411 Absorbed by Shields . | . . . Core Remaining (%) 85 | 100 71 . Volleys Fired 81 | 2 27 52 Largest 2 | 2 2 2 Hottest 80 | 80 80 76 Shots Fired 148 | 4 53 91 Gun 142 | 4 53 85 Cannon . | . . . Launcher 6 | . . 6 Special . | . . . Kinetic 78 | . 10 68 Thermal 64 | 4 43 17 Explosive 6 | . . 6 Electromagnetic . | . . . Robot Hit Streak 12 | 2 12 12 Robot Miss Streak 3 | 1 2 3 Penetration Max . | . . . Secondary Targets . | . . . Shots Hit Robots 104 | 3 40 61 Core Hits 39 | 4 17 18 Critical Hits 1 | . . 1 Critical Kills . | . . . Critical Parts Destroyed 1 | . . 1 Melee Attacks . | . . . Impact . | . . . Slashing . | . . . Piercing . | . . . Sneak Attacks . | . . . Combat Hostiles . | . . . Follow-up Attacks . | . . . Damage Inflicted 1151 | 43 340 768 Guns 939 | 43 338 558 Cannons . | . . . Explosions 210 | . . 210 Melee . | . . . Ramming 2 | . 2 . Kinetic 441 | . 44 397 Thermal 498 | 43 294 161 Explosive 210 | . . 210 Electromagnetic . | . . . Impact . | . . . Slashing . | . . . Piercing . | . . . Highest Corruption . | . . . Average Corruption . | . . . Corruption Purged . | . . . Overload Shots . | . . . Overflow Damage 12 | . . 12 Projectiles . | . . . Explosions 12 | . . 12 Melee . | . . . Knockbacks . | . . . Impact . | . . . Kinetic . | . . . Secondary . | . . . Self-Inflicted Damage 79 | . 1 78 Shots 2 | . . 2 Rammed 1 | . 1 . Targets Rammed 1 | . 1 . Kicked . | . . . Crushed . | . . . Highest Temperature 150 | 18 150 49 Average Temperature 34 | 12 48 12 Received Heat Transfer 756 | . 207 549 Siege Activations . | . . . Robots Corrupted . | . . . Combat Hostiles . | . . . Parts Fried . | . . . Impact Corruptions . | . . . Robots Melted . | . . . Combat Hostiles . | . . . Parts Melted 2 | . 1 1 Heat Transferred 1171 | 100 675 396 Parts Sabotaged . | . . . Parts Stolen . | . . . Parts Stripped . | . . . Power Chain Reactions . | . . . Missiles Intercepted . | . . . Alert | -11 -10 -9 ------- Run | Scr Mat Mat Peak Influence 258 | 15 114 258 Initial 29 | . 9 29 Average 86 | 3 70 140 Maximum Alert Level 1 | . . 1 Low Security (%) 93 | 100 100 81 Level 1 6 | . . 18 Level 2 . | . . . Level 3 . | . . . Level 4 . | . . . Level 5 . | . . . High Security . | . . . Max Security . | . . . Squads Dispatched 4 | . 3 1 Investigation . | . . . Extermination . | . . . Reinforcement 4 | . 3 1 Assault . | . . . Garrison . | . . . Intercept . | . . . Construction Impeded . | . . . Haulers Reinforced . | . . . Stealth | -11 -10 -9 --------- Run | Scr Mat Mat Distress Signals 1 | . . 1 Communications Jammed . | . . . Distress Signals . | . . . Times Spotted 25 | . 10 15 Peak Tracking Total 5 | . 3 5 Tactical Retreats 1 | . 1 . Traps | -11 -10 -9 ------- Run | Scr Mat Mat Traps Triggered . | . . . Indirectly . | . . . Trap Hack Attempts . | . . . Triggered . | . . . Disarmed . | . . . Reprogrammed . | . . . Reused . | . . . Traps Extracted . | . . . Installed . | . . . Triggered . | . . . Machines | -11 -10 -9 ---------- Run | Scr Mat Mat Machines Disabled 2 | . . 2 Max in Single Turn 1 | . . 1 Machines Sabotaged . | . . . Garrisons Compromised . | . . . Overloaded Fab Kills . | . . . Fab Network Shutdowns . | . . . Hacking | -11 -10 -9 --------- Run | Scr Mat Mat Machines Accessed 1 | . . 1 Terminals 1 | . . 1 Fabricators . | . . . Repair Stations . | . . . Recycling Units . | . . . Scanalyzers . | . . . Garrison Access . | . . . Total Hacks 2 | . . 2 Successful 2 | . . 2 Failed . | . . . Catastrophic . | . . . Database Lockouts . | . . . Manual . | . . . Terminals 2 | . . 2 Fabricators . | . . . Repair Stations . | . . . Recycling Units . | . . . Scanalyzers . | . . . Garrison Access . | . . . Terminal Hacks 2 | . . 2 Record 1 | . . 1 Alert Level 1 | . . 1 Fabricator Hacks . | . . . Repair Station Hacks . | . . . Recycling Unit Hacks . | . . . Scanalyzer . | . . . Garrison Access Hacks . | . . . Unauthorized Hacks . | . . . Terminals . | . . . Fabricators . | . . . Repair Stations . | . . . Recycling Units . | . . . Scanalyzers . | . . . Garrison Access . | . . . Data Cores Recovered 1 | . . 1 Used . | . . . Hacking Detections 1 | . . 1 Full Trace Events . | . . . Feedback Events . | . . . Feedback Blocked . | . . . Robot Schematics Acquired . | . . . Robots Built . | . . . Matter . | . . . Time . | . . . Total Robot Build Rating . | . . . Part Schematics Acquired . | . . . Parts Built . | . . . Matter . | . . . Time . | . . . Total Part Build Rating . | . . . Parts Repaired . | . . . Time . | . . . Parts Recycled . | . . . Recycled Matter . | . . . Retrieved Matter . | . . . Retrieved Components . | . . . Parts Scanalyzed . | . . . Part Schematics Acquired . | . . . Parts Damaged . | . . . Bothacking | -11 -10 -9 ------------ Run | Scr Mat Mat Used RIF Installer . | . . . Robots Hacked . | . . . Non-combat . | . . . Combat . | . . . Robot Hacks Applied . | . . . Relay Couplers Released . | . . . Robots Rewired . | . . . Allies Hacked . | . . . Hacks Repelled . | . . . Allies | -11 -10 -9 -------- Run | Scr Mat Mat Total Allies . | . . . Largest Group . | . . . Highest-Rated Group . | . . . Highest-Rated Ally . | . . . Total Orders . | . . . Ally Attacks . | . . . Total Damage . | . . . Kills . | . . . Allies Corrupted . | . . . Allies Melted . | . . . Intel | -11 -10 -9 ------- Run | Scr Mat Mat Robot Analysis Total . | . . . Derelict Logs Recovered . | . . . Drone Launches . | . . . Drone Recoveries . | . . . Exploration | -11 -10 -9 ------------- Run | Scr Mat Mat Turns Passed 1156 | 139 621 396 Spaces Moved 612 | 105 346 161 Core 21 | 20 . 1 Treads . | . . . Legs 591 | 85 346 160 Wheels . | . . . Hover . | . . . Flight . | . . . Fastest Speed 50 | 50 120 120 Average Speed 128 | 107 138 122 Slowest Speed 300 | 120 150 300 Overloaded Moves . | . . . Propulsion Burnouts . | . . . Robots Hopped . | . . . Cave-ins Triggered . | . . . Exploration Rate (%) 22 | 4 45 19 Regions Visited 2 Branch Regions . Pre-discovered Areas . | . . . Known Exits Taken . | . . . Unknown Exits Taken 2 | 1 1 . Scrap Searched . | . . . Spaces Dug 10 | . . 10 Terrain Destroyed 57 | . . 57 Melee . | . . . Projectile . | . . . AOE 57 | . . 57 Terrain Rammed . | . . . Walls Destroyed . | . . . Machines Disabled . | . . . Actions | -11 -10 -9 --------- Run | Scr Mat Mat Total 854 | 128 446 280 Wait 63 | 1 14 48 Move 610 | 104 345 161 Hop . | . . . Pick Up 46 | 13 27 6 Fast Attach 2 | . 1 1 Attach 16 | 7 1 8 Detach . | . . . Swap 9 | . 8 1 Drop 26 | 1 22 3 Fire 81 | 2 27 52 Melee . | . . . Ram . | . . . Kick 1 | . 1 . Crush . | . . . Escape Stasis . | . . . Rewire . | . . . Trap . | . . . Miscellaneous . | . . . Route ------- -11/Scrapyard -10/Materials (discovered 2 exits: *Mat x2) -9/Materials (discovered 2 exits: [*Min] / [*Sto]) History --------- Turn | Location | Event 21 | -11/Scrapyard | Discovered new exit (range 15) 140 | -11/Scrapyard | Entered Materials 303 | -10/Materials | Build established: Mutant 336 | -10/Materials | Discovered new exit (range 10) 603 | -10/Materials | Discovered new exit (range 6) 761 | -10/Materials | Entered another Materials area 761 | -9/Materials | Evolved 2 slots: Propulsion x2 934 | -9/Materials | Lost 3 parts (1p2w) 999 | -9/Materials | Build established: Scavenger-Mutant 1019 | -9/Materials | Discovered new exit (range 7) 1123 | -9/Materials | Discovered new exit (range 15) 1135 | -9/Materials | Core integrity fell below 50% 1154 | -9/Materials | Core integrity fell below 20% 1157 | -9/Materials | Destroyed by G-47 Trooper with Particle Gun Last Messages --------------- 01140_ Sensor Array destroyed. 01140_ U-05 Engineer builds a Wall. 01141_ R-06 Scavenger collects Heat Sink. 01144_ U-05 Engineer lays Concrete. 01145_ U-05 Engineer builds a Wall. 01146_ U-05 Engineer lays Concrete. 01147_ K-01 Serf collects debris. 01147_ U-05 Engineer lays Concrete. 01148_ Aluminum Leg destroyed. 01150_ The unstable cave ceiling collapses. 01150_ K-01 Serf collects debris. 01150_ U-05 Engineer lays Concrete. 01150_ U-05 Engineer builds a Wall. 01151_ U-05 Engineer lays Concrete. 01153_ K-01 Serf collects debris. 01154_ The unstable cave ceiling collapses. 01154_ U-05 Engineer lays Concrete. 01156_ M-13 Machinist fits Backup Power I on G-47 Trooper. 01156_ U-05 Engineer builds a Wall. [Achievement: First Step to Greatness] Map ----- +----------------------------------------------------+ | ?????????????????????????????????????????????????? | | ?????????????????????????????????????????????????? | | ?????????????????????????????????????????????????? | | ?????????????????????????????????????????????????? | | ?????????????????????????????????????????????????? | | ?????????????????????????????????????????????????? | | ?????????????????????????????????????????????????? | | ?????????????????????????????????????????????????? | | ?????????????????????????????????????????????????? | | ?????????????????????????????????????????????????? | | ?????????????????????????????????????????????????? | | ?????????????????????????????????????????????????? | | ?????????????????????????????????????????????????? | | ?????????????????????????????????????????????????? | | ??????????????????????????????????????? ???????? | | ??????????????????????????????????????